bitfinex/quotes_BTCUSD_20251019
["timestamp","ask_amount","ask_price","bid_price","bid_amount"]
[1760891794503,4.13300119,108480.0,108470.0,0.0029964]
[1760891796479,3.92993355,108480.0,108470.0,0.0029964]
[1760891796807,3.35487724,108480.0,108470.0,0.0029964]
[1760891796962,0.34628295,108480.0,108470.0,0.0029964]
[1760891797538,0.7844069,108480.0,108470.0,0.0029964]
[1760891797923,0.34528295,108480.0,108470.0,0.0029964]
[1760891798270,0.34628295,108480.0,108470.0,0.0029964]
[1760891799869,0.34788915,108480.0,108470.0,0.0029964]
[1760891803894,0.68788915,108480.0,108470.0,0.0029964]
[1760891805299,0.34788915,108480.0,108470.0,0.18737917]
[1760891805502,0.33069427,108480.0,108470.0,0.0029964]
[1760891806114,0.32969427,108480.0,108470.0,0.0029964]
[1760891806260,0.66808807,108480.0,108470.0,0.0029964]
[1760891809464,0.66808807,108480.0,108470.0,0.01628718]
[1760891811781,0.66808807,108480.0,108470.0,0.00245677]
[1760891812186,0.68528597,108480.0,108470.0,0.00245677]
[1760891813052,0.34528597,108480.0,108470.0,0.00245677]
[1760891813802,0.3468921,108480.0,108470.0,0.00245677]
[1760891814636,0.3468921,108480.0,108470.0,0.15035677]
[1760891818844,0.78501983,108480.0,108470.0,0.15035677]
[1760891819548,0.3468921,108480.0,108470.0,0.15035677]
[1760891821805,0.3468921,108480.0,108470.0,0.00245677]
[1760891822497,0.78501983,108480.0,108470.0,0.00245677]
[1760891822782,0.3468921,108480.0,108470.0,0.00245677]
[1760891823090,0.78501983,108480.0,108470.0,0.00245677]
[1760891823956,0.3468921,108480.0,108470.0,0.00245677]
[1760891824151,0.3468921,108480.0,108470.0,0.01858131]
[1760891824335,0.78501983,108480.0,108470.0,0.01858131]
[1760891826297,0.79363817,108480.0,108470.0,0.01858131]
[1760891826620,0.3468921,108480.0,108470.0,0.01858131]
[1760891827231,0.35551069,108480.0,108470.0,0.00245677]
[1760891827652,0.35551069,108480.0,108470.0,0.15035677]
[1760891828573,0.79363842,108480.0,108470.0,0.15035677]
[1760891829785,0.35551069,108480.0,108470.0,0.15035677]
[1760891829979,0.79363842,108480.0,108470.0,0.15035677]
[1760891830187,0.35551069,108480.0,108470.0,0.15035677]
[1760891830411,0.35551069,108480.0,108470.0,0.16402119]
[1760891832464,0.35551069,108480.0,108470.0,0.15035677]
[1760891833396,0.79363842,108480.0,108470.0,0.15035677]
[1760891833645,0.35551069,108480.0,108470.0,0.1649431]
[1760891834160,0.3277884,108480.0,108470.0,0.1649431]
[1760891837239,0.76591613,108480.0,108470.0,0.15035677]
[1760891837448,1.20404386,108480.0,108470.0,0.15035677]
[1760891838347,1.20504386,108480.0,108470.0,0.15035677]
[1760891838845,1.20404386,108480.0,108470.0,0.15035677]
[1760891839201,1.20504386,108480.0,108470.0,0.15035677]
[1760891839402,1.20504386,108480.0,108470.0,0.00245677]
[1760891840041,1.20343773,108480.0,108470.0,0.00245677]
[1760891843670,1.20504388,108480.0,108470.0,0.00245677]
[1760891844371,1.20343773,108480.0,108470.0,0.00245677]
[1760891847602,1.20504389,108480.0,108470.0,0.00245677]
[1760891849075,0.21278843,108480.0,108470.0,0.18683954]
[1760891849267,0.32858843,108480.0,108470.0,0.18683954]
[1760891850109,0.32758843,108480.0,108470.0,0.18683954]
[1760891850432,0.32858843,108480.0,108470.0,0.18683954]
[1760891850612,0.14422265,108480.0,108470.0,0.33473954]
[1760891850822,0.13560406,108480.0,108470.0,0.90346043]
[1760891851398,0.1329979,108480.0,108470.0,0.90346043]
[1760891851589,0.1158,108480.0,108470.0,0.90346043]
[1760891852806,0.1158,108480.0,108470.0,0.75556043]
[1760891857844,0.1158,108480.0,108470.0,0.3174327]
[1760891858049,0.1158,108480.0,108470.0,0.75556043]
[1760891858407,0.1158,108480.0,108470.0,0.3174327]
[1760891858634,0.1158,108480.0,108470.0,0.75556043]
[1760891859741,0.1158,108480.0,108470.0,0.3174327]
[1760891859926,0.1158,108480.0,108470.0,0.75556043]
[1760891860492,0.00160598,108490.0,108480.0,0.22054806]
[1760891860704,0.0232132,108530.0,108520.0,0.18429782]
[1760891860921,0.01722752,108530.0,108520.0,0.62242555]
[1760891861136,0.6845982,108550.0,108530.0,0.18426846]
[1760891861341,0.13632331,108540.0,108530.0,0.18426846]
[1760891861548,0.11588,108540.0,108530.0,0.62239619]
[1760891861961,0.11637274,108540.0,108530.0,0.62239619]
[1760891862167,0.45637274,108540.0,108530.0,0.62239619]
[1760891862300,0.11637274,108540.0,108530.0,0.71680707]
[1760891864611,0.11637274,108540.0,108530.0,0.75298935]
[1760891865379,0.11637274,108540.0,108530.0,0.31486162]
[1760891865583,0.11637274,108540.0,108530.0,0.75298935]
[1760891869784,0.11637274,108540.0,108530.0,0.31486162]
[1760891869994,0.11637274,108540.0,108530.0,0.75298935]
[1760891870913,0.11797807,108540.0,108530.0,0.75298935]
[1760891871133,0.11797807,108540.0,108530.0,0.31486162]
[1760891871385,0.11797807,108540.0,108530.0,0.13059316]
[1760891871386,0.30224193,108540.0,108530.0,0.13059316]
[1760891871590,0.75747718,108540.0,108530.0,0.18428084]
[1760891871812,0.75747718,108540.0,108530.0,0.00019944]
[1760891872416,0.75587185,108540.0,108530.0,0.00019944]
[1760891873118,0.75587185,108540.0,108530.0,0.18448028]
[1760891874401,0.31774412,108540.0,108530.0,0.18448028]
[1760891874608,0.31774412,108540.0,108530.0,0.33238028]
[1760891874815,0.31774412,108540.0,108530.0,0.14809944]
[1760891875685,0.31774412,108540.0,108530.0,0.33238028]
[1760891876517,0.75587185,108540.0,108530.0,0.33238028]
[1760891877253,0.76443317,108540.0,108530.0,0.33238028]
[1760891877671,0.32632056,108540.0,108530.0,0.33238028]
[1760891879170,0.327926,108540.0,108530.0,0.33238028]
[1760891880792,0.32632056,108540.0,108530.0,0.33238028]
[1760891882078,0.28706533,108540.0,108530.0,0.33238028]
[1760891882868,0.28867076,108540.0,108530.0,0.33238028]
[1760891883480,0.30166929,108540.0,108530.0,0.33238028]
[1760891883719,0.23505087,108540.0,108530.0,0.33238028]
[1760891884873,1.45031795,108540.0,108530.0,0.14809944]
[1760891885012,4.45031795,108540.0,108530.0,0.14809944]
[1760891885221,4.01268441,108540.0,108530.0,0.14809944]
[1760891886372,4.01268441,108540.0,108530.0,0.00019944]
[1760891886948,4.01368441,108540.0,108530.0,0.00019944]
[1760891888189,4.01529002,108540.0,108530.0,0.00019944]
[1760891888724,4.54733444,108540.0,108530.0,0.00019944]
[1760891889939,3.67206736,108540.0,108530.0,0.00019944]
[1760891890087,4.54733444,108540.0,108530.0,0.00019944]
[1760891890904,4.64174086,108540.0,108530.0,0.00019944]
[1760891891504,4.54733444,108540.0,108530.0,0.00019944]
[1760891891761,4.1097009,108540.0,108530.0,0.00019944]
[1760891892298,3.46185648,108540.0,108530.0,0.00019944]
[1760891892506,0.23613087,108540.0,108530.0,0.00019944]
[1760891892706,0.57613087,108540.0,108530.0,0.00019944]
[1760891893948,0.57773646,108540.0,108530.0,0.00019944]
[1760891894153,0.60194044,108540.0,108530.0,0.00019944]
[1760891894794,0.60094044,108540.0,108530.0,0.00019944]
[1760891895773,0.61814925,108540.0,108530.0,0.01690143]
[1760891895977,0.60094287,108540.0,108530.0,0.01690143]
[1760891897282,0.6009457,108540.0,108530.0,0.01690143]
[1760891897776,0.6009857,108540.0,108530.0,0.01690143]
[1760891898648,0.55007869,108540.0,108530.0,0.20118227]
[1760891898860,0.32599869,108540.0,108530.0,0.33238028]
[1760891899205,0.14173483,108540.0,108530.0,0.33238028]
[1760891899797,0.32599869,108540.0,108530.0,0.33238028]
[1760891899994,0.14173483,108540.0,108530.0,0.33238028]
[1760891900125,0.32599869,108540.0,108530.0,0.33238028]
[1760891903171,0.32600297,108540.0,108530.0,0.33238028]
[1760891904131,0.31739267,108540.0,108530.0,0.33238028]
[1760891904337,0.32600269,108540.0,108530.0,0.14809944]
[1760891904660,0.32600269,108540.0,108530.0,0.34894532]
[1760891904869,0.32600269,108540.0,108530.0,0.33238028]
[1760891905040,0.14173883,108540.0,108530.0,0.33238028]
[1760891905738,0.32600269,108540.0,108530.0,0.33238028]
[1760891906294,0.1433443,108540.0,108530.0,0.33238028]
[1760891907391,0.1433443,108540.0,108530.0,0.46297344]
[1760891908495,0.14173883,108540.0,108530.0,0.46297344]
[1760891910366,0.13312881,108540.0,108530.0,0.46297344]
[1760891911210,0.13473426,108540.0,108530.0,0.46297344]
[1760891912491,0.31899812,108540.0,108530.0,0.46297344]
[1760891912864,0.31739267,108540.0,108530.0,0.46297344]
[1760891914214,0.11592,108540.0,108530.0,0.46297344]
[1760891916045,0.30018386,108540.0,108530.0,0.46297344]
[1760891919018,0.30018386,108540.0,108530.0,0.24251032]
[1760891919221,0.30018386,108540.0,108530.0,0.14809944]
[1760891919222,0.7378174,108540.0,108530.0,0.14809944]
[1760891919647,0.30018386,108540.0,108530.0,0.14809944]
[1760891921176,0.31743813,108540.0,108530.0,0.14809944]
[1760891921482,0.11592,108540.0,108530.0,0.34987782]
[1760891921664,0.30018386,108540.0,108530.0,0.33238028]
[1760891922158,0.31744892,108540.0,108530.0,0.33238028]
[1760891922716,0.30018386,108540.0,108530.0,0.33238028]
[1760891923038,0.30178931,108540.0,108530.0,0.33238028]
[1760891923255,0.31905791,108540.0,108530.0,0.33238028]
[1760891925798,0.13479405,108540.0,108530.0,0.33238028]
[1760891926223,0.31905791,108540.0,108530.0,0.33238028]
[1760891927080,0.13479405,108540.0,108530.0,0.33238028]
[1760891929404,0.13479405,108540.0,108530.0,1.27001382]
[1760891929619,0.13479405,108540.0,108530.0,0.83238028]
[1760891929837,0.1331886,108540.0,108530.0,0.83238028]
[1760891930013,0.1330686,108540.0,108530.0,1.40060698]
[1760891930223,0.1158,108540.0,108530.0,1.40060698]
[1760891931120,0.1158,108540.0,108530.0,1.25270698]
[1760891931560,0.1158,108540.0,108530.0,1.40060698]
[1760891931702,0.34,108550.0,108540.0,0.18425382]
[1760891931902,0.14186642,108550.0,108540.0,0.75248052]
[1760891932106,0.11594773,108550.0,108540.0,0.75248052]
[1760891932899,0.11594773,108550.0,108540.0,0.90038052]
[1760891933799,0.11594773,108550.0,108540.0,0.90138052]
[1760891934084,0.11755304,108550.0,108540.0,0.90138052]
[1760891934310,0.11594773,108550.0,108540.0,0.90138052]
[1760891934511,0.11594773,108550.0,108540.0,0.46374698]
[1760891935286,0.11594773,108550.0,108540.0,0.90138052]
[1760891936520,0.00014773,108550.0,108540.0,0.90138052]
[1760891936685,0.11594773,108550.0,108540.0,0.90138052]
[1760891936885,0.00014773,108550.0,108540.0,0.90138052]
[1760891939168,0.00014773,108550.0,108540.0,0.75348052]
[1760891940833,0.00014773,108550.0,108540.0,0.7532709]
[1760891941086,0.00014773,108550.0,108540.0,0.31584698]
[1760891941635,0.00014773,108550.0,108540.0,0.7532709]
[1760891941839,0.00175302,108550.0,108540.0,0.7532709]
[1760891942462,0.00175302,108550.0,108540.0,0.31584698]
[1760891942712,0.00014773,108550.0,108540.0,0.31584698]
[1760891942839,0.62181854,108550.0,108540.0,0.001]
[1760891943603,0.62181854,108550.0,108540.0,0.501]
[1760891944011,0.18439462,108550.0,108540.0,0.68526386]
[1760891944210,0.18599997,108550.0,108540.0,0.68526386]
[1760891944506,0.18439462,108550.0,108540.0,0.68526386]
[1760891944858,0.18439462,108550.0,108540.0,0.83316386]
[1760891947531,0.18599997,108550.0,108540.0,0.83316386]
[1760891948392,0.00160535,108550.0,108540.0,0.83316386]
[1760891948537,0.18585224,108550.0,108540.0,0.83316386]
[1760891949118,0.00160535,108550.0,108540.0,1.27058778]
[1760891949314,0.00160535,108550.0,108540.0,1.83860486]
[1760891949522,0.11740535,108550.0,108540.0,1.83860486]
[1760891949669,0.00160535,108550.0,108540.0,1.83860486]
[1760891950083,0.4562,108560.0,108550.0,0.18424689]
[1760891950309,0.4562,108560.0,108550.0,0.76957081]
[1760891950522,0.1162,108560.0,108550.0,0.76957081]
[1760891953369,0.00200527,108560.0,108550.0,0.90016397]
[1760891953769,0.11780527,108560.0,108550.0,0.90116397]
[1760891953972,0.00200527,108560.0,108550.0,1.19068789]
[1760891954177,0.00200527,108560.0,108550.0,0.75326397]
[1760891954387,0.0004,108560.0,108550.0,0.75326397]
[1760891954591,0.0004,108560.0,108550.0,1.19068789]
[1760891955022,0.0004,108560.0,108550.0,1.20698765]
[1760891955983,0.0004,108560.0,108550.0,1.20598765]
[1760891956402,0.0004,108560.0,108550.0,1.20898765]
[1760891956730,0.0004,108560.0,108550.0,1.70898765]
[1760891956934,0.0004,108560.0,108550.0,1.70798765]
[1760891957307,0.0004,108560.0,108550.0,1.70898765]
[1760891958090,0.00200511,108560.0,108550.0,1.70898765]
[1760891958512,0.00200511,108560.0,108550.0,1.69268789]
[1760891958662,0.00200511,108560.0,108550.0,1.25526397]
[1760891960305,0.00200511,108560.0,108550.0,1.40316397]
[1760891960663,0.00200511,108560.0,108550.0,1.51896397]
[1760891963116,0.00200511,108560.0,108550.0,1.40316397]
[1760891963316,0.00200511,108560.0,108550.0,1.51896397]
[1760891968247,0.00200511,108560.0,108550.0,1.40316397]
[1760891968446,0.0004,108560.0,108550.0,1.51892397]
[1760891970466,0.0004,108560.0,108550.0,1.95634789]
[1760891971004,0.26324477,108580.0,108570.0,0.18421295]
[1760891971217,0.26324477,108580.0,108570.0,0.62163687]
[1760891971432,0.26324477,108580.0,108570.0,0.76953687]
[1760891972364,0.26324477,108580.0,108570.0,0.77053687]
[1760891972579,0.26324477,108580.0,108570.0,0.1489]
[1760891972792,0.26484981,108580.0,108570.0,0.1489]
[1760891973233,0.26484981,108580.0,108570.0,0.33311295]
[1760891973453,0.26489904,108580.0,108570.0,0.33311295]
[1760891974565,0.263294,108580.0,108570.0,0.33311295]
[1760891975860,0.263294,108580.0,108570.0,0.1489]
[1760891976531,0.28915701,108580.0,108570.0,0.1489]
[1760891977153,0.271915,108580.0,108570.0,0.1489]
[1760891977353,0.28916253,108580.0,108570.0,0.1489]
[1760891977590,0.2907676,108580.0,108570.0,0.1489]
[1760891978642,0.2907676,108580.0,108570.0,0.33311295]
[1760891978842,0.1260353,108580.0,108570.0,0.77053687]
[1760891979098,0.1174143,108580.0,108570.0,0.77053687]
[1760891979896,0.30161028,108580.0,108570.0,0.77053687]
[1760891981595,0.23802187,108590.0,108580.0,0.19838972]
[1760891981837,0.37968231,108590.0,108580.0,0.34628972]
[1760891982078,0.3800334,108590.0,108580.0,0.34628972]
[1760891982958,0.34306698,108590.0,108580.0,0.96790962]
[1760891983389,0.34306698,108590.0,108580.0,0.78371364]
[1760891983613,0.34306698,108590.0,108580.0,0.34628972]
[1760891984864,0.34306698,108590.0,108580.0,0.5304857]
[1760891985520,0.15888796,108590.0,108580.0,0.96790962]
[1760891987396,0.02665153,108590.0,108580.0,0.82000962]
[1760891987530,0.02665153,108590.0,108580.0,1.25743354]
[1760891987919,0.02665153,108590.0,108580.0,0.82000962]
[1760891988176,0.19356359,108590.0,108580.0,0.82000962]
[1760891988781,0.00938457,108590.0,108580.0,0.82000962]
[1760891988950,0.19356374,108590.0,108580.0,0.82000962]
[1760891989464,0.00938472,108590.0,108580.0,0.9144205]
[1760891989661,0.00075109,108590.0,108580.0,1.0623205]
[1760891989858,0.00075109,108590.0,108580.0,1.49974442]
[1760891990132,0.00075109,108590.0,108580.0,1.0623205]
[1760891990508,0.00075109,108590.0,108580.0,0.9144205]
[1760891990729,0.00075109,108590.0,108580.0,0.95060278]
[1760891990882,0.00075109,108590.0,108580.0,1.09850278]
[1760891991094,0.18493011,108590.0,108580.0,1.09850278]
[1760891991446,0.00075109,108590.0,108580.0,0.66107886]
[1760891991691,0.00075109,108590.0,108580.0,1.09850278]
[1760891991904,0.00075109,108590.0,108580.0,1.3880267]
[1760891992129,0.00075109,108590.0,108580.0,0.95060278]
[1760891993693,0.00235596,108590.0,108580.0,0.95060278]
[1760891994537,0.00075109,108590.0,108580.0,0.95060278]
[1760891998037,0.00075109,108590.0,108580.0,1.5359267]
[1760891998269,0.00075109,108590.0,108580.0,1.97335062]
[1760891998500,0.00075109,108590.0,108580.0,1.82545062]
[1760891998717,0.00075109,108590.0,108580.0,1.3880267]
[1760891998934,0.00075109,108590.0,108580.0,1.39171777]
[1760891999593,0.00075109,108590.0,108580.0,1.39271777]
[1760891999805,0.00075109,108590.0,108580.0,1.39371777]
[1760892000679,0.00075109,108590.0,108580.0,0.9558347]
[1760892002134,0.00075109,108590.0,108580.0,0.51886993]
[1760892002346,0.00075109,108590.0,108580.0,0.59471658]
[1760892002804,0.00075109,108590.0,108580.0,1.03168135]
[1760892003035,0.00075109,108590.0,108580.0,1.06586363]
[1760892004102,0.00075109,108590.0,108580.0,1.07055485]
[1760892004586,0.00075109,108590.0,108580.0,1.08783298]
[1760892004793,0.00075109,108590.0,108580.0,1.08683298]
[1760892005012,0.00075109,108590.0,108580.0,1.08783298]
[1760892005442,0.00075109,108590.0,108580.0,1.08683298]
[1760892005670,0.00075109,108590.0,108580.0,1.08783298]
[1760892006968,0.00075109,108590.0,108580.0,1.07155485]
[1760892008796,0.00075109,108590.0,108580.0,1.41155485]
[1760892008999,0.0004,108610.0,108580.0,1.41155485]
[1760892009000,0.0092064,108620.0,108610.0,0.1841451]
[1760892009204,0.017873,108620.0,108610.0,0.1841451]
[1760892009316,0.0086666,108620.0,108610.0,0.1841451]
[1760892009524,0.0086666,108620.0,108610.0,0.20550263]
[1760892009730,0.0086666,108620.0,108610.0,0.1841451]
[1760892009923,0.19279475,108620.0,108600.0,0.03618228]
[1760892010123,0.19279475,108620.0,108600.0,0.43043522]
[1760892010124,0.64699306,108620.0,108600.0,0.43043522]
[1760892010492,0.1841451,108610.0,108600.0,0.13059316]
[1760892010823,0.1841451,108610.0,108580.0,1.17245148]
[1760892010824,0.18416414,108600.0,108580.0,0.20208094]
[1760892011032,0.18416414,108600.0,108590.0,0.09441088]
[1760892011238,0.18416414,108600.0,108580.0,0.5304854]
[1760892011440,0.18416414,108600.0,108590.0,0.18417902]
[1760892012042,0.1857688,108600.0,108590.0,0.18417902]
[1760892013720,0.18416414,108600.0,108590.0,0.18417902]
[1760892015378,0.18416414,108600.0,108590.0,0.33207902]
[1760892016679,0.1857688,108600.0,108590.0,0.33207902]
[1760892017221,0.18416414,108600.0,108590.0,0.33207902]
[1760892018415,0.64761302,108610.0,108590.0,0.33207902]
[1760892018642,0.19178171,108600.0,108590.0,0.33207902]
[1760892018839,0.18416414,108600.0,108590.0,0.33207902]
[1760892019932,0.64761302,108610.0,108590.0,0.33207902]
[1760892020141,0.67349036,108610.0,108590.0,0.33207902]
[1760892020718,0.67449036,108610.0,108590.0,0.33207902]
[1760892020882,0.00035105,108600.0,108590.0,0.33207902]
[1760892023775,0.0019557,108600.0,108590.0,0.33207902]
[1760892024465,0.00035105,108600.0,108590.0,0.77004379]
[1760892025191,0.00035105,108600.0,108590.0,0.33307902]
[1760892026363,0.00035105,108600.0,108590.0,0.90063695]
[1760892026751,0.00035105,108600.0,108590.0,1.01627695]
[1760892027735,0.00195563,108600.0,108590.0,1.01627695]
[1760892035647,0.00195563,108600.0,108590.0,0.90063695]
[1760892035972,0.00035105,108600.0,108590.0,1.01627695]
[1760892036575,0.00035105,108600.0,108590.0,1.01623695]
[1760892037021,0.00035105,108600.0,108590.0,0.90063695]
[1760892037139,0.00035105,108600.0,108590.0,1.01623695]
[1760892037353,0.00035105,108600.0,108590.0,0.90063695]
[1760892037619,0.00035105,108600.0,108590.0,1.01623695]
[1760892037956,0.00035105,108600.0,108590.0,0.90063695]
[1760892038158,0.00035105,108600.0,108590.0,1.01623695]
[1760892040284,0.0019556,108600.0,108590.0,1.01623695]
[1760892043786,0.0019556,108600.0,108590.0,0.57927218]
[1760892043985,0.0019556,108600.0,108590.0,1.01623695]
[1760892049571,0.0019956,108600.0,108590.0,1.01623695]
[1760892060216,0.22101779,108620.0,108600.0,0.22033412]
[1760892060434,0.24693743,108620.0,108600.0,0.314745]
[1760892060639,0.24693743,108620.0,108600.0,0.75170977]
[1760892060795,0.68393539,108620.0,108600.0,0.75174296]
[1760892061585,0.24793743,108620.0,108600.0,0.75174296]
[1760892062343,0.24693743,108620.0,108600.0,0.89964296]
[1760892064656,0.1841451,108610.0,108600.0,0.462645]
[1760892064896,0.02591964,108610.0,108600.0,0.89964296]
[1760892065112,0.00863988,108610.0,108600.0,1.33664092]
[1760892065688,0.20197457,108620.0,108600.0,1.33664092]
[1760892065892,0.21925515,108620.0,108610.0,0.43699796]
[1760892066059,0.21925515,108620.0,108610.0,0.58489796]
[1760892066267,0.21995708,108620.0,108610.0,0.58489796]
[1760892068272,0.21075054,108620.0,108610.0,0.76904306]
[1760892070211,0.02662239,108620.0,108610.0,0.89963622]
[1760892070425,0.00934181,108620.0,108610.0,1.01523622]
[1760892070850,0.00934181,108620.0,108610.0,1.45223418]
[1760892071047,0.00070193,108620.0,108610.0,1.30433418]
[1760892071680,0.00070193,108620.0,108610.0,0.43033826]
[1760892071881,0.00070193,108620.0,108610.0,0.43133826]
[1760892072087,0.00070193,108620.0,108610.0,1.30533418]
[1760892072288,0.00070193,108620.0,108610.0,1.31900715]
[1760892075437,0.00070193,108620.0,108610.0,1.34668243]
[1760892079589,0.00070193,108620.0,108610.0,0.49131354]
[1760892079800,0.00070193,108620.0,108610.0,1.0439115]
[1760892080027,0.00070193,108620.0,108610.0,1.01623622]
[1760892081023,0.00070193,108620.0,108610.0,0.90063622]
[1760892081257,0.00070193,108620.0,108610.0,1.01623622]
[1760892081601,0.00070193,108620.0,108610.0,1.03009684]
[1760892082011,0.00070193,108620.0,108610.0,1.20623622]
[1760892082603,0.00070193,108620.0,108610.0,1.64323418]
[1760892082779,0.00070193,108620.0,108610.0,1.20623622]
[1760892082990,0.00070193,108620.0,108610.0,1.11831283]
[1760892083189,0.00070193,108620.0,108610.0,1.23391283]
[1760892083761,0.00070193,108620.0,108610.0,1.11831283]
[1760892083954,0.00070193,108620.0,108610.0,1.23391283]
[1760892084363,0.00070193,108620.0,108610.0,1.67091079]
[1760892086474,0.00230586,108620.0,108610.0,1.67091079]
[1760892089044,0.00230586,108620.0,108610.0,1.23391283]
[1760892089405,0.00230586,108620.0,108610.0,1.67091079]
[1760892090999,0.00230586,108620.0,108610.0,1.55531079]
[1760892091564,0.00230586,108620.0,108610.0,1.67091079]
[1760892094545,0.00070193,108620.0,108610.0,1.67091079]
[1760892097602,0.00230583,108620.0,108610.0,1.67091079]
[1760892097774,0.00070193,108620.0,108610.0,1.67091079]
[1760892097956,0.00070193,108620.0,108610.0,1.67191079]
[1760892098148,0.00070193,108620.0,108610.0,1.67091079]
[1760892099556,0.00070193,108620.0,108610.0,1.67191079]
[1760892100271,0.0004,108640.0,108620.0,0.14719807]
[1760892100444,0.0004,108640.0,108630.0,0.88571344]
[1760892100661,0.00903445,108640.0,108630.0,0.86730232]
[1760892100839,0.0004,108640.0,108630.0,0.86730232]
[1760892101207,0.00110173,108640.0,108630.0,0.86730232]
[1760892101614,0.00110173,108640.0,108630.0,0.86830232]
[1760892103930,0.00270548,108640.0,108630.0,0.86830232]
[1760892104571,0.0004,108680.0,108630.0,2.34721478]
[1760892104770,4.97358891,108730.0,108720.0,0.18395879]
[1760892104986,4.98270871,108730.0,108720.0,1.31477316]
[1760892105236,4.98270871,108730.0,108720.0,1.66298466]
[1760892105622,4.9740818,108730.0,108720.0,1.77851674]
[1760892106221,4.9740818,108730.0,108720.0,0.46752286]
[1760892106420,4.9740818,108730.0,108720.0,0.34219757]
[1760892106674,4.9740818,108730.0,108720.0,0.47605014]
[1760892106875,4.9740818,108730.0,108720.0,1.35859298]
[1760892107567,4.9740818,108730.0,108720.0,1.34150041]
[1760892107713,4.9740818,108730.0,108720.0,1.77849837]
[1760892108564,4.98850399,108730.0,108720.0,1.77849837]
[1760892108728,4.9740818,108730.0,108720.0,1.77849837]
[1760892110177,4.9740818,108730.0,108720.0,1.77846545]
[1760892110411,4.9740818,108730.0,108720.0,1.92566352]
[1760892110935,4.97723671,108730.0,108720.0,1.92566352]
[1760892111340,4.97723671,108730.0,108720.0,3.74045932]
[1760892111537,4.97125195,108730.0,108720.0,2.92820199]
[1760892112338,4.97125195,108730.0,108720.0,2.92720199]
[1760892112828,4.97125195,108730.0,108720.0,2.92920199]
[1760892113001,4.97125195,108730.0,108720.0,2.92820199]
[1760892113409,4.97125195,108730.0,108720.0,2.92920199]
[1760892113812,4.97125195,108730.0,108720.0,2.92820199]
[1760892114252,4.97125195,108730.0,108720.0,2.92920199]
[1760892114967,4.97125195,108730.0,108720.0,3.36619995]
[1760892115583,4.97125195,108730.0,108720.0,4.24019587]
[1760892115584,4.52277608,108730.0,108720.0,4.24019587]
[1760892115805,4.52277608,108730.0,108720.0,4.25019586]
[1760892116028,4.52277608,108730.0,108720.0,4.26019585]
[1760892116409,4.52277608,108730.0,108720.0,2.94820197]
[1760892116607,4.52277608,108730.0,108720.0,3.38519993]
[1760892116854,4.52277608,108730.0,108720.0,4.26019585]
[1760892117013,4.52277608,108730.0,108720.0,4.25819585]
[1760892117214,4.52277608,108730.0,108720.0,4.25719585]
[1760892117386,4.52277608,108730.0,108720.0,4.25819585]
[1760892117588,4.52277608,108730.0,108720.0,4.25068185]
[1760892117944,4.52277608,108730.0,108720.0,4.25268185]
[1760892119579,4.04760663,108730.0,108720.0,4.25268185]
[1760892119774,4.00119518,108730.0,108720.0,4.25268185]
[1760892119981,3.72319497,108730.0,108720.0,4.25268185]
[1760892120421,3.2663592,108730.0,108720.0,4.28584636]
[1760892120626,3.2663592,108730.0,108720.0,4.35390979]
[1760892120765,2.90032665,108730.0,108720.0,4.35390979]
[1760892120969,2.7726125,108730.0,108720.0,4.35390979]
[1760892122197,2.32700448,108730.0,108720.0,4.35390979]
[1760892122416,1.42596939,108730.0,108720.0,4.35390979]
[1760892122774,1.04417359,108730.0,108720.0,4.45096979]
[1760892122974,0.96296428,108730.0,108720.0,4.45096979]
[1760892123262,0.23097826,108730.0,108720.0,3.37983428]
[1760892123452,0.19312918,108730.0,108720.0,3.62536366]
[1760892123666,0.17469918,108730.0,108720.0,3.20660366]
[1760892123830,0.17469918,108730.0,108720.0,3.44311366]
[1760892124028,0.17469918,108730.0,108720.0,3.43511367]
[1760892124238,0.17469918,108730.0,108720.0,3.33367367]
[1760892124433,3.0,108810.0,108790.0,0.00919202]
[1760892124635,0.0001479,108810.0,108800.0,1.30191818]
[1760892125014,0.0001479,108810.0,108800.0,1.31962849]
[1760892125215,0.0005,108830.0,108820.0,0.18378974]
[1760892125460,0.0005,108830.0,108820.0,0.68384391]
[1760892125665,0.0005,108830.0,108820.0,0.74983365]
[1760892125874,0.0005,108830.0,108820.0,0.56604391]
[1760892126432,0.0165089,108830.0,108820.0,0.56704391]
[1760892126634,0.0005,108830.0,108820.0,0.56704391]
[1760892126836,0.0149084,108830.0,108820.0,1.08035951]
[1760892127095,0.0149084,108830.0,108820.0,1.07935951]
[1760892127305,0.0005,108830.0,108820.0,0.89556977]
[1760892127477,0.0005,108830.0,108820.0,1.08035951]
[1760892127681,0.0005,108830.0,108820.0,1.07935951]
[1760892128122,0.0005,108830.0,108820.0,1.08035951]
[1760892128422,0.0005,108830.0,108820.0,1.08135951]
[1760892128792,0.0005,108830.0,108820.0,0.13159316]
[1760892128991,0.0005,108830.0,108820.0,0.3153829]
[1760892129935,0.01490834,108830.0,108820.0,0.3163829]
[1760892130315,0.01840912,108830.0,108820.0,1.04546977]
[1760892130752,0.00400078,108830.0,108820.0,1.04546977]
[1760892130893,0.00400078,108830.0,108820.0,0.28049316]
[1760892131435,0.00400078,108830.0,108820.0,0.13259316]
[1760892132262,0.00560166,108830.0,108820.0,0.3163829]
[1760892132621,0.00560166,108830.0,108820.0,0.13259316]
[1760892133023,0.00560166,108830.0,108820.0,0.3163829]
[1760892133621,0.00560166,108830.0,108820.0,0.34400676]
[1760892133899,0.02001049,108830.0,108820.0,0.34400676]
[1760892134534,0.02001049,108830.0,108820.0,0.37649557]
[1760892135187,0.00560166,108830.0,108820.0,0.37649557]
[1760892135428,0.00560166,108830.0,108820.0,0.49677171]
[1760892136371,0.00560166,108830.0,108820.0,1.26174832]
[1760892137041,0.00560166,108830.0,108820.0,0.49677171]
[1760892137243,0.00560166,108830.0,108820.0,0.34887171]
[1760892137463,0.00560166,108830.0,108820.0,0.31268943]
[1760892140881,0.00560166,108830.0,108820.0,1.12642336]
[1760892141257,0.00400078,108830.0,108820.0,1.09393455]
[1760892141459,0.00400078,108830.0,108820.0,0.32895794]
[1760892142102,0.00400078,108830.0,108820.0,0.44691794]
[1760892144301,0.00400078,108830.0,108820.0,1.21189455]
[1760892144505,0.00028,108840.0,108830.0,1.29874945]
[1760892144706,0.0252017,108860.0,108850.0,0.18373909]
[1760892144944,0.02569389,108860.0,108850.0,0.39614997]
[1760892145362,0.02569389,108860.0,108850.0,0.44510061]
[1760892145482,0.02569389,108860.0,108850.0,1.21007722]
[1760892147208,0.02569389,108860.0,108850.0,0.44610061]
[1760892147564,0.02569389,108860.0,108850.0,0.44710061]
[1760892148508,0.02569389,108860.0,108850.0,0.32910061]
[1760892148735,0.06585809,108890.0,108850.0,0.44710061]
[1760892148933,0.03841413,108890.0,108880.0,1.79796097]
[1760892149161,0.00582261,108890.0,108880.0,2.06503484]
[1760892149368,0.00582261,108890.0,108880.0,2.06500466]
[1760892149575,1e-08,108900.0,108890.0,1.41353321]
[1760892149795,4.961e-05,108920.0,108910.0,0.52363786]
[1760892149991,4.961e-05,108920.0,108910.0,1.12663432]
[1760892150647,0.05411618,108930.0,108920.0,0.83362099]